Cogmind - Beta 12 @@@ ROGUE MODE // 2024.01.17 @ 15:11:00 Player: HeartGrenade Result: Self-destructed Performance ------------- Evolutions (2) 1000 Regions Visited (4) 800 Robots Destroyed (16) 80 Value Destroyed (497) 497 Prototype IDs (3) 60 Alien Tech Used (0) 0 Bonus (22) 22 TOTAL SCORE: 2459 Bonus ------- High Alert Combat Kills 22 Cogmind --------- Core Integrity 324/550 Matter 166/300 Energy 32/100 System Corruption 0% Temperature Cool (0) Movement Walking (120) Location -8/Materials Parts ------- > --- POWER (1) -------- (None) > --- PROPULSION (4) --- Carbon-fiber Leg Carbon-fiber Leg Carbon-fiber Leg > --- UTILITY (3) ------ Improved Heat Sink Large Storage Unit Visual Processing Unit > --- WEAPON (3) ------- Heavy Particle Cannon Ion Cannon > --- INVENTORY (15) --- Spread Laser Flak Cannon Mini Grenade Launcher Maul Peak State ------------ > --- POWER ------------ (None) > --- PROPULSION ------- Carbon-fiber Leg Carbon-fiber Leg Carbon-fiber Leg > --- UTILITY ---------- Improved Heat Sink Large Storage Unit Visual Processing Unit > --- WEAPON ----------- Heavy Particle Cannon Ion Cannon Mini Grenade Launcher > --- INVENTORY -------- Spread Laser Flak Cannon Maul [Rating: 23] Favorites ----------- Power Light Nuclear Core Engine Light Ion Engine Power Core Light Nuclear Core Propulsion Light Treads Treads Light Treads Leg Carbon-fiber Leg Wheel Armored Wheel Utility Visual Processing Unit Device Improved Heat Sink Storage Large Storage Unit Processor Visual Processing Unit Weapon Heavy Particle Cannon Energy Gun Spread Laser Energy Cannon Heavy Particle Cannon Ballistic Gun Assault Rifle Launcher Mini Grenade Launcher Build | -11 -10 -9 -9 -8 ------- Run | Jun Mat Mat Min Mat Slots Evolved 4 | . . 2 . 2 Power . | . . . . . Propulsion 2 | . . 1 . 1 Utility 1 | . . . . 1 Weapon 1 | . . 1 . . Parts Attached 24 | 4 2 1 2 15 Power 3 | . . . . 3 Engine 2 | . . . . 2 Core 1 | . . . . 1 Reactor . | . . . . . Propulsion 10 | 2 1 1 1 5 Treads 4 | 2 1 . . 1 Leg 3 | . . . . 3 Wheel 3 | . . 1 1 1 Hover . | . . . . . Flight . | . . . . . Utility 3 | . . . . 3 Device 1 | . . . . 1 Storage 1 | . . . . 1 Processor 1 | . . . . 1 Hackware . | . . . . . Protection . | . . . . . Artifact . | . . . . . Weapon 8 | 2 1 . 1 4 Energy Gun 2 | 1 . . . 1 Energy Cannon 2 | . . . . 2 Ballistic Gun 2 | 1 1 . . . Ballistic Cannon . | . . . . . Launcher 2 | . . . 1 1 Special Weapon . | . . . . . Impact Weapon . | . . . . . Slashing Weapon . | . . . . . Piercing Weapon . | . . . . . Special Melee Weapon . | . . . . . Unidentified Prototypes 1 | . . . . 1 Parts Lost 7 | . 2 . 1 4 Power 1 | . . . . 1 Propulsion 4 | . . . 1 3 Utility . | . . . . . Weapon 2 | . 2 . . . Highest Loss Streak 2 | . 2 . 1 2 To Critical Strikes . | . . . . . Average Slot Usage (%) 44 | . 47 23 29 59 Treads 14 | . 27 22 13 5 Leg 2 | . . . . 5 Wheel 7 | . . 1 14 12 Device 1 | . . . . 3 Storage 1 | . . . . 4 Processor 3 | . . . . 8 Energy Gun 4 | . 10 . . 5 Energy Cannon 3 | . . . . 9 Ballistic Gun 1 | . 9 . . . Naked Turns . | . . . . . Heaviest Build 41 | 4 4 . . 41 Greatest Support 45 | 3 40 3 3 45 Greatest Overweight (x) 3 | 1 1 . . 3 Average Overweight (x) . | . . . . . Largest Inventory Capacity 15 | 5 5 5 5 15 Average Capacity 7 | 5 5 5 5 10 Most Carried 5 | 1 2 5 4 5 Average Carried 3 | . 1 3 3 3 Final Capacity 15 | 5 5 5 5 15 Final Carried 4 | 1 2 4 4 4 Class Distribution -------------------- 100% | Mutant Dominant Class ---------------- Mutant | -10/Materials Mutant | -9/Materials Mutant | -9/Mines Mutant | -8/Materials Resources | -11 -10 -9 -9 -8 ----------- Run | Jun Mat Mat Min Mat Matter Collected 407 | 190 44 62 55 56 Remotely . | . . . . . Salvage Created 304 | . 44 . 17 243 Parts 20 | . 5 . 4 11 Haulers Intercepted . | . . . . . Recyclers Shooed . | . . . . . Parts Field Recycled . | . . . . . Retrieved Matter . | . . . . . Parts Self-Destructed . | . . . . . Prevented . | . . . . . Kills | -11 -10 -9 -9 -8 ------- Run | Jun Mat Mat Min Mat Combat Hostiles Destroyed 16 | . 3 . 4 9 Guns 5 | . 3 . . 2 Cannons 3 | . . . . 3 AOE 8 | . . . 4 4 Classes Destroyed 3 | . 1 . . 2 Swarmer 7 | . 3 . 4 . Grunt 8 | . . . . 8 Sentry 1 | . . . . 1 Best Kill Streak 6 | . 3 . 4 6 Combat Bots Only 6 | . 3 . 4 6 Max Kills in Single Turn 3 | . 1 . 3 2 Gunslinging . | . . . . . Exploded 3 | . . . 3 2 Melee . | . . . . . Uniques/NPCs Destroyed . | . . . . . Combat | -11 -10 -9 -9 -8 -------- Run | Jun Mat Mat Min Mat Damage Taken 1402 | . 343 180 92 787 Core 386 | . 44 90 26 226 Absorbed by Shields . | . . . . . Core Remaining (%) 84 | 100 82 . 71 . Volleys Fired 44 | . 19 . 3 22 Largest 2 | . 2 . 1 2 Hottest 140 | . 70 . 30 140 Shots Fired 67 | . 36 . 3 28 Gun 48 | . 36 . . 12 Cannon 10 | . . . . 10 Launcher 9 | . . . 3 6 Special . | . . . . . Kinetic 17 | . 17 . . . Thermal 41 | . 19 . . 22 Explosive 9 | . . . 3 6 Electromagnetic . | . . . . . Robot Hit Streak 7 | . 7 . 5 6 Robot Miss Streak 3 | . 2 . . 3 Penetration Max . | . . . . . Secondary Targets . | . . . . . Shots Hit Robots 48 | . 27 . 1 20 Core Hits 31 | . 4 . 1 26 Critical Kills . | . . . . . Critical Parts Destroyed . | . . . . . Critical Strikes 1 | . 1 . . . Burn 1 | . 1 . . . Melee Attacks . | . . . . . Impact . | . . . . . Slashing . | . . . . . Piercing . | . . . . . Sneak Attacks . | . . . . . Combat Hostiles . | . . . . . Follow-up Attacks . | . . . . . Damage Inflicted 1856 | . 334 . 319 1203 Guns 504 | . 333 . . 171 Cannons 123 | . . . . 123 Explosions 1228 | . . . 319 909 Melee . | . . . . . Ramming 1 | . 1 . . . Kinetic 134 | . 134 . . . Thermal 493 | . 199 . . 294 Explosive 1228 | . . . 319 909 Electromagnetic . | . . . . . Impact . | . . . . . Slashing . | . . . . . Piercing . | . . . . . Highest Corruption . | . . . . . Average Corruption . | . . . . . Corruption Purged . | . . . . . Corruption Blocked . | . . . . . Overload Shots . | . . . . . Overflow Damage 105 | . . . 82 23 Projectiles 3 | . . . . 3 Explosions 102 | . . . 82 20 Melee . | . . . . . Knockbacks . | . . . . . Impact . | . . . . . Kinetic . | . . . . . Secondary . | . . . . . Self-Inflicted Damage 51 | . . . 51 . Shots 2 | . . . 2 . Rammed 1 | . 1 . . . Targets Rammed 1 | . 1 . . . Kicked . | . . . . . Crushed . | . . . . . Highest Temperature 198 | . 51 . 2 198 Average Temperature 56 | . 16 . 2 79 Received Heat Transfer 726 | . 150 99 . 477 Siege Activations . | . . . . . Robots Corrupted . | . . . . . Combat Hostiles . | . . . . . Parts Fried . | . . . . . Impact Corruptions . | . . . . . Robots Melted . | . . . . . Combat Hostiles . | . . . . . Parts Melted 1 | . 1 . . . Heat Transferred 1071 | . 666 . . 405 Parts Sabotaged . | . . . . . Parts Stolen . | . . . . . Parts Stripped . | . . . . . Power Chain Reactions . | . . . . . Missiles Intercepted . | . . . . . Alert | -11 -10 -9 -9 -8 ------- Run | Jun Mat Mat Min Mat Peak Influence 467 | . 111 267 200 467 Initial 103 | . . 46 103 78 Average 156 | . 65 150 181 212 Maximum Alert Level 2 | . . 1 1 2 Low Security (%) 64 | 100 100 69 21 55 Level 1 30 | . . 30 78 29 Level 2 5 | . . . . 14 Level 3 . | . . . . . Level 4 . | . . . . . Level 5 . | . . . . . High Security . | . . . . . Max Security . | . . . . . Squads Dispatched 2 | . 1 . . 1 Investigation 1 | . . . . 1 Extermination . | . . . . . Reinforcement 1 | . 1 . . . Assault . | . . . . . Garrison . | . . . . . Intercept . | . . . . . Searches Triggered . | . . . . . Construction Impeded . | . . . . . Haulers Reinforced . | . . . . . Active Scanning Responses . | . . . . . Cargo Convoy Interrupts . | . . . . . Stealth | -11 -10 -9 -9 -8 --------- Run | Jun Mat Mat Min Mat Distress Signals 8 | . 1 3 . 4 Communications Jammed . | . . . . . Distress Signals . | . . . . . Times Spotted 51 | . 12 15 4 20 Peak Tracking Total 9 | . 6 9 4 8 Tactical Retreats 6 | . . 5 . 1 Traps | -11 -10 -9 -9 -8 ------- Run | Jun Mat Mat Min Mat Traps Triggered 2 | . 1 . . 1 Indirectly . | . . . . . Trap Hack Attempts . | . . . . . Triggered . | . . . . . Disarmed . | . . . . . Reprogrammed . | . . . . . Reused . | . . . . . Traps Extracted . | . . . . . Installed . | . . . . . Triggered . | . . . . . Machines | -11 -10 -9 -9 -8 ---------- Run | Jun Mat Mat Min Mat Machines Disabled . | . . . . . Max in Single Turn . | . . . . . Machines Repaired . | . . . . . Machines Sabotaged . | . . . . . Overloaded Fab Kills . | . . . . . Hacking | -11 -10 -9 -9 -8 --------- Run | Jun Mat Mat Min Mat Machines Accessed 9 | . . 4 . 5 Terminals 8 | . . 4 . 4 Fabricators . | . . . . . Repair Stations . | . . . . . Recycling Units . | . . . . . Scanalyzers . | . . . . . Garrison Access 1 | . . . . 1 Total Hacks 28 | . . 10 . 18 Successful 13 | . . 2 . 11 Failed 14 | . . 8 . 6 Catastrophic 3 | . . 1 . 2 Database Lockouts 1 | . . . . 1 Manual 22 | . . 9 . 13 Terminals 27 | . . 10 . 17 Fabricators . | . . . . . Repair Stations . | . . . . . Recycling Units . | . . . . . Scanalyzers . | . . . . . Garrison Access 1 | . . . . 1 Terminal Hacks 9 | . . 1 . 8 Robot Analysis 2 | . . 1 . 1 Prototype ID Bank 1 | . . . . 1 Emergency Access Points 1 | . . . . 1 Terminal Index 1 | . . . . 1 Locate Traps 1 | . . . . 1 Zone Layout 3 | . . . . 3 Fabricator Hacks . | . . . . . Repair Station Hacks . | . . . . . Recycling Unit Hacks . | . . . . . Scanalyzer . | . . . . . Garrison Access Hacks 1 | . . . . 1 Unlock Access 1 | . . . . 1 Unauthorized Hacks 3 | . . 1 . 2 Terminals 3 | . . 1 . 2 Track 1 | . . . . 1 Botnet 1 | . . 1 . . Operators 1 | . . . . 1 Fabricators . | . . . . . Repair Stations . | . . . . . Recycling Units . | . . . . . Scanalyzers . | . . . . . Garrison Access . | . . . . . Data Cores Recovered . | . . . . . Used . | . . . . . Hacking Detections 8 | . . 4 . 4 Full Trace Events 1 | . . . . 1 Feedback Events . | . . . . . Feedback Blocked . | . . . . . Robot Schematics Acquired . | . . . . . Robots Built . | . . . . . Authchips . | . . . . . Time . | . . . . . Total Robot Build Rating . | . . . . . Part Schematics Acquired . | . . . . . Parts Built . | . . . . . Authchips . | . . . . . Time . | . . . . . Total Part Build Rating . | . . . . . Parts Repaired . | . . . . . Time . | . . . . . Parts Recycled . | . . . . . Recycled Matter . | . . . . . Retrieved Matter . | . . . . . Retrieved Components . | . . . . . Parts Scanalyzed . | . . . . . Part Schematics Acquired . | . . . . . Parts Damaged . | . . . . . Bothacking | -11 -10 -9 -9 -8 ------------ Run | Jun Mat Mat Min Mat Used RIF Installer . | . . . . . Robots Hacked . | . . . . . Non-combat . | . . . . . Combat . | . . . . . Robot Hacks Applied . | . . . . . Relay Couplers Released . | . . . . . Fabnet Peak Effective % . | . . . . . Robots Rewired . | . . . . . Allies Hacked . | . . . . . Hacks Repelled . | . . . . . Allies | -11 -10 -9 -9 -8 -------- Run | Jun Mat Mat Min Mat Total Allies . | . . . . . Largest Group . | . . . . . Highest-Rated Group . | . . . . . Highest-Rated Ally . | . . . . . Total Orders . | . . . . . Ally Attacks . | . . . . . Total Damage . | . . . . . Kills . | . . . . . Allies Corrupted . | . . . . . Allies Melted . | . . . . . Intel | -11 -10 -9 -9 -8 ------- Run | Jun Mat Mat Min Mat Robot Analysis Total 2 | . . 1 . 1 Derelict Logs Recovered . | . . . . . Drone Launches . | . . . . . Drone Recoveries . | . . . . . Exploration | -11 -10 -9 -9 -8 ------------- Run | Jun Mat Mat Min Mat Turns Passed 818 | 35 160 180 121 322 Spaces Moved 1014 | 36 121 341 223 293 Core 858 | 36 102 341 223 156 Treads 20 | . 19 . . 1 Legs 14 | . . . . 14 Wheels 122 | . . . . 122 Hover . | . . . . . Flight . | . . . . . Fastest Speed 50 | 50 50 50 50 50 Average Speed 63 | 79 80 50 50 81 Slowest Speed 260 | 100 160 50 50 260 Overloaded Moves . | . . . . . Propulsion Burnouts . | . . . . . Robots Hopped . | . . . . . Cave-ins Triggered . | . . . . . Exploration Rate (%) 35 | 4 30 34 75 36 Regions Visited 4 Branch Regions 1 Pre-discovered Areas . | . . . . . Known Exits Taken . | . . . . . Unknown Exits Taken 4 | 1 1 1 1 . Scrap Searched 2 | . . . 2 . Spaces Dug 7 | . . . 7 . Terrain Destroyed 54 | . . . 21 33 Melee . | . . . . . Projectile 5 | . . . . 5 AOE 49 | . . . 21 28 Terrain Rammed . | . . . . . Walls Destroyed . | . . . . . Machines Disabled . | . . . . . Actions | -11 -10 -9 -9 -8 --------- Run | Jun Mat Mat Min Mat Total 1105 | 41 144 349 228 343 Wait 14 | . 1 5 . 8 Move 1010 | 35 120 340 222 293 Hop . | . . . . . Pick Up 7 | 2 1 3 . 1 Fast Attach 17 | 3 2 . 1 11 Attach 5 | 1 . 1 1 2 Detach 3 | . . . 1 2 Swap 2 | . . . . 2 Drop 2 | . . . . 2 Fire 44 | . 19 . 3 22 Melee . | . . . . . Ram . | . . . . . Kick . | . . . . . Crush 1 | . 1 . . . Escape Stasis . | . . . . . Rewire . | . . . . . Trap . | . . . . . Miscellaneous . | . . . . . Route ------- -11/Junkyard -10/Materials -9/Materials (discovered 2 exits: [*Min] / [*Sto]) -9/Mines -8/Materials (discovered 1 exit: Gar) History --------- Turn | Location | Event 8 | -11/Junkyard | Discovered new exit (range 16) 36 | -11/Junkyard | Entered Materials 186 | -10/Materials | Discovered new exit (range 16) 196 | -10/Materials | Entered another Materials area 196 | -9/Materials | Evolved 2 slots: Propulsion x1, Weapon x1 203 | -9/Materials | Discovered new exit (range 16) 304 | -9/Materials | Build established: Mutant 360 | -9/Materials | Discovered new exit (range 11) 376 | -9/Materials | Entered Mines 474 | -9/Mines | Discovered new exit (range 9) 497 | -9/Mines | Entered Materials 497 | -8/Materials | Evolved 2 slots: Propulsion x1, Utility x1 506 | -8/Materials | Identified exit to Garrison 619 | -8/Materials | Central database locked down 819 | -8/Materials | Self-destructed Last Messages --------------- 00785_ The unstable cave ceiling collapses. 00785_ K-01 Serf collects debris. 00785_ Lgt. Nuclear Core destroyed. 00785_ W-25 Informer sends out distress signal. 00789_ K-01 Serf collects debris. 00798_ The unstable cave ceiling collapses. 00800_ Acquired Carbon-fiber Leg. 00801_ K-01 Serf collects debris. 00802_ W-25 Informer sends out distress signal. 00804_ Acquired Carbon-fiber Leg. 00804_ K-01 Serf collects debris. 00805_ Destroyed Imp. Signal Interpreter. 00805_ Y-45 Defender destroyed. 00806_ The unstable cave ceiling collapses. 00808_ Critical hit (Burn: +37). 00809_ K-01 Serf collects debris. 00811_ Atomic Centrifuge disabled. 00812_ K-01 Serf collects debris. 00814_ Critical hit (Burn: +37). 00815_ K-01 Serf collects debris. Map ----- +----------------------------------------------------+ | T #??????# ????????????????????? | | #######+#### ####???# ????????????????????? | | # ### ! #??# #???# ????????????????????? | | # #?# #??# #???# ????????????????????? | | # #?#"* #??# #???###????????????????????? | | # #?#"T = #??########?????#????????????????????? | | # ###"" #?????????#######????????????????????? | | ## #?????????# ????????????????????? | | ###+"####?????????# #####????????????????????? | | T #?# ##????????????# # ????????????????????? | | #?# #?????????????# # ????????????????????? | | #####?# #???????####### # """????????????????????? | | ??????#+######### # # "Y ????????????????????? | | ??????# # + # """????????????????????? | | ??????# / """ # # #== ????????????????????? | | ??????# "T" # # ##+############??????????? | | ??????# """ # # !%! / g ???????????? | | ###???# """ # + ! g ????????????? | | #???# """ # # """ ?"??????????? | | # #???# # # ! w """ """????????? | | # #???# # # """ """ "?????? | | # #???#####+########### ^ [ ????? | | #+#####??# ### ! ????? | | #??# """ """????????? | | """#??# k "" "??????????? | | """#??#### Y @ """ "??????????? | | """#?????## ## #;+###### ???????? | | #??????# #% %# ?? ???????? | | #?#####??##### """ ??? """ """ ???????? | | #???# """ #???""" ""?????????? | | #???# """ [#????"" ""?????????? | | ?"" *#???# ? ?#????? ?? ??????????? | | "R #???# # # """ ??????????????????????? | | """ #???# " # """???????????????????????? | | *#???# ###" # """???????????????????????? | | ?#####???# ??## # ????????????????????????? | | ????????? ????# #####????????????????????????? | | ????????? ????# #????????????????????????????? | | ????????????????# #????????????????????????????? | | ????????????????# ?????????????????????????????? | | #####???????????? ?????????????????????????????? | | ???????????????????????????????????????????? | | ???????????????????????????????????????????? | | ????????????????????????????????????????????? | | """""????????????????????????????????????????????? | | """"?????????????????????????????????????????????? | | """"????????????#????????????????????????????????? | | ?????????????# ???????????????????????????????? | | ?????????????? ??????????????????????????????? | | #+###????????????? ###+####?????????????????????? | +----------------------------------------------------+ Best States ------------- Heat Dissipation 45 Energy Generation 14 Energy Capacity 160 Matter Stores 300 Matter Capacity 300 Sight Range 18 Terrain Scan Density 10 Evasion (%) 50 Recoil Reduction 2 Item Schematics ----------------- None Robot Schematics ------------------ None Fabricated ------------ Nothing Alien Tech Used ----------------- None Achievements -------------- None Challenges ------------ None Game ------ Seed HellfireMakeshiftExoskeleton Manual? 0 Play Time 00:13:17 Cumulative 341.8 hours Start 2024.01.17 @ 14:59:15 End 2024.01.17 @ 15:11:00 Sessions 1 Manual Loads 0 Difficulty Rogue Special Mode None Game No. 141 Rogue 141 Adventurer 0 Explorer 0 Win Type - Total 16 Types 5/2/5/1/1/0/1/1/0 Lore% 87 Gallery% 84 Achievement% 72 Wizard Run 0 Options --------- ASCII 0 Keyboard 1 Movement Numpad Keybinds 0 Fullscreen 2 Font 18/X11 Map View 76x50 Tactical HUD 1 Map Filters NONE Filters NONE Steam 1 RUN: 39eed3b4-65d0-4f96-8adf-1915d626a34e